fUST/lending_fUST_20251219
["ID","MTS","AMOUNT","RATE_DAILY","PERIOD"]
[399168160,1766130707958,-421.5305514,0.00063013,120]
[399168161,1766130707967,-160.0,0.000633,120]
[399168162,1766130707976,-339.0,0.00063604,120]
[399168163,1766130707985,-900.0,0.00063828,120]
[399168164,1766130707995,-200.0,0.00064,120]
[399168165,1766130708003,-150.0,0.00064,120]
[399168166,1766130708013,-1018.0,0.00064,120]
[399168167,1766130708022,-415.0,0.00064284,120]
[399168168,1766130708031,-1000.0,0.00064443,120]
[399168169,1766130708040,-180.24673178,0.00064545,87]
[399168170,1766130708049,-900.0,0.00064924,120]
[399168171,1766130708059,-3000.0,0.00065,120]
[399168172,1766130708069,-333.40174537,0.00065,30]
[399168173,1766130708079,-150.0,0.00065,120]
[399168174,1766130708089,-998.9812196,0.00065,120]
[399168175,1766130708100,-1000.0,0.00065,120]
[399168176,1766130708109,-160.0,0.00065,120]
[399168177,1766130708118,-1018.0,0.00065,120]
[399168178,1766130708127,-366.0,0.00065604,120]
[399168179,1766130708137,-346.86543,0.00065609,2]
[399168180,1766130708147,-200.0,0.00066,120]
[399168181,1766130708156,-150.0,0.00066,120]
[399168182,1766130708166,-900.0,0.0006602,120]
[399168183,1766130708175,-160.0,0.000667,120]
[399168184,1766130708184,-20000.0,0.000668,120]
[399168185,1766130708193,-200.0,0.000669,120]
[399168186,1766130708203,-4058.68092291,0.000669,28]
[399168187,1766130708214,-150.0,0.00067,120]
[399168188,1766130708223,-21400.0,0.00067,30]
[399168189,1766130708232,-500.0,0.00067,120]
[399168190,1766130708242,-117692.1574799,0.00067,120]
[399168191,1766130708251,-63881.63800053,0.00067,120]
[399168192,1766130708261,-900.0,0.00067116,120]
[399168193,1766130708271,-415.0,0.00067284,120]
[399168194,1766130708280,-176354.00000005,0.00067478,120]
[399168195,1766130708289,-177238.00000005,0.00067478,120]
[399168196,1766130708298,-393.0,0.00067604,120]
[399168197,1766130708307,-192.62121023,0.00067807,94]
[399168198,1766130708316,-200.0,0.00068,120]
[399168199,1766130708325,-150.0,0.00068,120]
[399168200,1766130708334,-300148.9708187,0.00068,120]
[399168201,1766130708343,-478.58123496,0.00068212,120]
[399168202,1766130708353,-160.0,0.000684,120]
[399168203,1766130708361,-10790.0,0.00068789,120]
[399168204,1766130708370,-250.0,0.00069,120]
[399168205,1766130708380,-413.536,0.00069556,120]
[399168206,1766130708389,-420.0,0.00069604,120]
[399168207,1766130708398,-1000.0,0.00069999,120]
[399168208,1766130708407,-200.0,0.0007,120]
[399168209,1766130708416,-998.98632548,0.0007,120]
[399168210,1766130708425,-3000.0,0.0007,120]
[399168211,1766130708434,-224.0,0.0007,120]
[399168212,1766130708443,-160.0,0.000701,120]
[399168213,1766130708452,-1000.0,0.00070649,120]
[399168214,1766130708461,-10790.0,0.00070789,120]
[399168215,1766130708470,-9951.71,0.00071,14]
[399168216,1766130708480,-205.44591358,0.00071069,101]
[399168217,1766130708489,-447.0,0.00071604,120]
[399168218,1766130708499,-160.0,0.000719,120]
[399168219,1766130708508,-200.0,0.00072,120]
[399168220,1766130708517,-346.86543,0.00072098,120]
[399168221,1766130708526,-10790.0,0.00072789,120]
[399168222,1766130708535,-160.0,0.000736,120]
[399168223,1766130708544,-474.0,0.00073604,120]
[399168224,1766130708553,-200.0,0.00074,120]
[399168225,1766130708562,-218.70555759,0.00074331,108]
[399168226,1766130708571,-10790.0,0.00074789,120]
[399168227,1766130708580,-3000.0,0.00075,120]
[399168228,1766130708589,-210.7390906,0.00075,2]
[399168229,1766130708598,-998.98632548,0.00075,120]
[399168230,1766130708607,-160.0,0.000753,120]
[399168231,1766130708616,-11876.69901332,0.00075444,120]
[399168232,1766130708625,-1500.0,0.000755,120]
[399168233,1766130708634,-501.0,0.00075604,120]
[399168234,1766130708643,-7627.21477897,0.000758,120]
[399168235,1766130708654,-200.0,0.00076,120]
[399168236,1766130708664,-8586.94,0.00076,2]
[399168237,1766130708673,-10790.0,0.00076789,120]
[399168238,1766130708682,-173.0,0.00077,120]
[399168239,1766130708692,-232.38631687,0.00077593,115]
[399168240,1766130708701,-528.0,0.00077604,120]
[399168241,1766130708710,-200.0,0.00078,120]
[399168242,1766130708719,-1000.0,0.00078,120]
[399168243,1766130708728,-346.86543,0.00078587,120]
[399168244,1766130708738,-10790.0,0.00078789,120]
[399168245,1766130708746,-555.0,0.00079604,120]
[399168246,1766130708755,-200.0,0.0008,120]
[399168247,1766130708764,-681.10284244,0.0008,50]
[399168248,1766130708774,-998.98632548,0.0008,120]
[399168249,1766130708783,-3479.16783635,0.0008,30]
[399168250,1766130708792,-4050.0,0.0008,120]
[399168251,1766130708801,-18200.0,0.0008,30]
[399168252,1766130708810,-172.0,0.0008,120]
[399168253,1766130708819,-10790.0,0.00080789,120]
[399168254,1766130708828,-246.47560657,0.00080855,120]
[399168255,1766130708837,-242.53,0.00081,14]
[399168256,1766130708846,-200.0,0.00082,120]
[399168257,1766130708855,-10790.0,0.00082789,120]
[399168258,1766130708864,-500.0,0.00083,120]
[399168259,1766130708873,-5000.0,0.00083,2]
[399168260,1766130708881,-47700.97932276,0.000835,120]
[399168261,1766130708890,-515.6085847,0.00083819,120]
[399168262,1766130708899,-200.0,0.00084,120]
[399168263,1766130708908,-1653.10406515,0.00084,120]
[399168264,1766130708917,-260.96190719,0.00084117,120]
[399168265,1766130708926,-10790.0,0.00084789,120]
[399168266,1766130708935,-3000.0,0.00085,120]
[399168267,1766130708944,-998.98632548,0.00085,120]
[399168268,1766130708953,-346.86543,0.00085076,120]
[399168269,1766130708963,-515.32839191,0.000855,120]
[399168270,1766130708972,-200.0,0.00086,120]
[399168271,1766130708981,-10790.0,0.00086789,120]
[399168272,1766130708991,-9951.71,0.00087,30]
[399168273,1766130709000,-275.8346222,0.00087379,120]
[399168274,1766130709009,-200.0,0.00088,120]
[399168275,1766130709018,-10790.0,0.00088789,120]
[399168276,1766130709029,-413.535,0.00089778,120]
[399168277,1766130709038,-1000.0,0.00089999,120]
[399168278,1766130709047,-998.98632548,0.0009,120]
[399168279,1766130709057,-14240.55492231,0.0009,120]
[399168280,1766130709066,-291.083961,0.00090641,120]
[399168281,1766130709076,-10790.0,0.00090789,120]
[399168282,1766130709085,-200.0,0.00091035,120]
[399168283,1766130709094,-200.0,0.00091035,120]
[399168284,1766130709103,-210.47148584,0.00091035,120]
[399168285,1766130709112,-200.0,0.0009135,120]
[399168286,1766130709122,-200.0,0.0009135,120]
[399168287,1766130709131,-200.0,0.0009135,120]
[399168288,1766130709141,-346.86543,0.00091564,120]
[399168289,1766130709150,-10790.0,0.00092789,120]
[399168290,1766130709159,-306.70084166,0.00093903,120]
[399168291,1766130709169,-1000.0,0.00094443,120]
[399168292,1766130709179,-1170680.1562,0.00094444,120]
[399168293,1766130709188,-10790.0,0.00094789,120]
[399168294,1766130709197,-6148.77723064,0.0009488,60]
[399168295,1766130709206,-1000.0,0.00094999,120]
[399168296,1766130709215,-3000.0,0.00095,120]
[399168297,1766130709224,-998.98632548,0.00095,120]
[399168298,1766130709234,-9600.0,0.00095,30]
[399168299,1766130709243,-1500.0,0.000955,120]
[399168300,1766130709252,-431.51062341,0.000966,120]
[399168301,1766130709262,-10790.0,0.00096789,120]
[399168302,1766130709271,-322.67680926,0.00097166,120]
[399168303,1766130709281,-1000.0,0.0009744,120]
[399168304,1766130709290,-1000.0,0.00097499,120]
[399168305,1766130709299,-6065.62849274,0.000975,30]
[399168306,1766130709308,-346.86543,0.00098053,120]
[399168307,1766130709318,-10790.0,0.00098789,120]
[399168308,1766130709327,-433.53,0.00099,120]
[399168309,1766130709336,-17408.0,0.00099383,120]
[399168310,1766130709345,-50603.37,0.000997,120]
[399168311,1766130709355,-421.82,0.00099702,120]
[399168312,1766130709364,-516.778315,0.000999,120]
[399168313,1766130709374,-500000.0,0.00099999,120]
[399168314,1766130709383,-1000.0,0.001,120]
[399168315,1766130709392,-1000.0,0.001,120]
[399168316,1766130709401,-543.00590821,0.001,120]
[399168317,1766130709411,-300.0,0.001,120]
[399168318,1766130709420,-998.98632548,0.001,120]
[399168319,1766130709430,-30618.71408493,0.001,120]
[399168320,1766130709439,-2000.0,0.001,120]
[399168321,1766130709449,-339.00396697,0.00100428,120]
[399168322,1766130709458,-10790.0,0.0010189,120]
[399168323,1766130709468,-355.67491717,0.0010369,120]
[399168324,1766130709478,-10790.0,0.0010389,120]
[399168325,1766130709487,-346.86543,0.00104542,120]
[399168326,1766130709497,-10790.0,0.0010589,120]
[399168327,1766130709506,-372.68271096,0.00106952,120]
[399168328,1766130709517,-10790.0,0.0010789,120]
[399168329,1766130709526,-490.57083577,0.0010949,120]
[399168330,1766130709536,-10790.0,0.0010989,120]
[399168331,1766130709546,-500.0,0.0011,60]
[399168332,1766130709555,-413.536,0.0011,120]
[399168334,1766130709565,-390.02080458,0.00110214,120]
[399168335,1766130709575,-346.86543,0.00111031,120]
[399168337,1766130709584,-10790.0,0.0011189,120]
[399168338,1766130709594,-407.68302148,0.00113476,120]
[399168339,1766130709603,-10790.0,0.0011389,120]
[399168341,1766130709612,-3000.0,0.00115,120]
[399168342,1766130709622,-1500.0,0.001155,120]
[399168343,1766130709631,-10790.0,0.0011589,120]
[399168344,1766130709640,-10263.65234267,0.00116,2]
[399168345,1766130709651,-425.6635192,0.00116738,120]
[399168346,1766130709662,-346.86543,0.0011752,120]
[399168347,1766130709672,-10790.0,0.0011789,120]
[399168348,1766130709683,-10000.0,0.00119,120]
[399168349,1766130709694,-2622.05592563,0.0011989,120]
[399168350,1766130709703,-200.0,0.0012,120]
[399168351,1766130709714,-242.53,0.0012,30]
[399168352,1766130709723,-443.95676048,0.0012,120]
[399168353,1766130709733,-17408.0,0.00122785,120]
[399168354,1766130709890,-346.86543,0.00124009,120]
[399168355,1766130709913,-1717.99760983,0.00124052,120]
[399168356,1766130709923,-1000.0,0.00124348,120]
[399168357,1766130709932,-17408.0,0.00124785,120]
[399168358,1766130709941,-3000.0,0.00125,120]
[399168359,1766130709950,-17408.0,0.00126785,120]
[399168360,1766130709960,-500822.35267306,0.00128,120]
[399168361,1766130709970,-8548.88732059,0.00128,120]
[399168362,1766130709979,-17408.0,0.00128785,120]
[399168363,1766130709988,-346.86543,0.00130497,120]
[399168364,1766130709998,-17408.0,0.00130785,120]
[399168365,1766130710007,-17408.0,0.00132785,120]
[399168366,1766130710016,-17408.0,0.00134785,120]
[399168367,1766130710025,-3000.0,0.00135,120]
[399168368,1766130710034,-17408.0,0.00136785,120]
[399168369,1766130710043,-346.86543,0.00136986,120]
[399168370,1766130710054,-398.898296,0.00136986,120]
[399168371,1766130710062,-17408.0,0.00138785,120]
[399168372,1766130710071,-30000.0,0.001388,120]
[399168373,1766130710080,-9951.71,0.0014,30]
[399168374,1766130710090,-398.898296,0.00144196,120]
[399168375,1766130710099,-1000.0,0.00144443,120]
[399168376,1766130710109,-2162220.1663,0.00144444,120]
[399168377,1766130710118,-5000.0,0.00145,120]
[399168378,1766130710127,-3000.0,0.00145,120]
[399168379,1766130710136,-500.0,0.001455,120]
[399168380,1766130710145,-2400.44656489,0.0014802,120]
[399168381,1766130710154,-200.0,0.0015,120]
[399168382,1766130710163,-1787.0,0.0015,2]
[399168383,1766130710171,-152420.81609633,0.0015,120]
[399168384,1766130710180,-1427.44316998,0.0015,120]
[399168385,1766130710190,-200.67602298,0.0015,7]
[399168386,1766130710199,-398.898296,0.00151406,120]
[399168387,1766130710208,-5000.0,0.00155,120]
[399168388,1766130710218,-398.898296,0.00158616,120]
[399168389,1766130710227,-200.0,0.00164212,7]
[399168390,1766130710236,-231.76,0.00164384,90]
[399168391,1766130710245,-398.898296,0.00165826,120]
[399168392,1766130710255,-5000.0,0.00169,120]
[399168393,1766130710264,-1158.94976933,0.0017,120]
[399168394,1766130710273,-1000.0,0.00173,30]
[399168395,1766130710282,-398.898296,0.00173035,120]
[399168396,1766130710292,-500.0,0.001755,120]
[399168397,1766130710302,-200.0,0.0018,120]
[399168398,1766130710311,-5000.0,0.0018,120]
[399168399,1766130710320,-398.898296,0.00180245,120]
[399168400,1766130710329,-398.898296,0.00187455,120]
[399168401,1766130710339,-398.898296,0.00194665,120]
[399168402,1766130710347,-400.0,0.00199,120]
[399168403,1766130710356,-1000.0,0.002,120]
[399168404,1766130710365,-1362.713019,0.002,100]
[399168405,1766130710374,-25000.0,0.002,30]
[399168406,1766130710383,-1000.0,0.002,120]
[399168407,1766130710392,-998.98632548,0.002,120]
[399168408,1766130710401,-398.898296,0.00201875,120]
[399168409,1766130710411,-500.0,0.002055,120]
[399168410,1766130710420,-398.898296,0.00209084,120]
[399168411,1766130710429,-1311.658,0.00213,90]
[399168412,1766130710438,-398.898296,0.00216294,120]
[399168413,1766130710446,-500.0,0.0022,120]
[399168414,1766130710455,-398.898296,0.00223504,120]
[399168415,1766130710464,-398.898296,0.00230714,120]
[399168416,1766130710473,-398.898296,0.00237924,120]
[399168417,1766130710482,-270.0,0.00244,120]
[399168418,1766130710492,-500.0,0.00245,120]
[399168419,1766130710501,-398.898296,0.00245133,120]
[399168420,1766130710510,-169.14625708,0.0025,120]
[399168421,1766130710519,-398.898296,0.00252343,120]
[399168422,1766130710528,-1352.859811,0.00253726,84]
[399168423,1766130710536,-398.898296,0.00259553,120]
[399168424,1766130710546,-200.0,0.0026,120]
[399168425,1766130710556,-9699.06313428,0.002633,75]
[399168426,1766130710566,-398.898296,0.00266763,120]
[399168427,1766130710575,-5000.0,0.00267,120]
[399168428,1766130710584,-160.0,0.0027,15]
[399168429,1766130710593,-398.898296,0.00273973,120]
[399168430,1766130710602,-500.0,0.0028,120]
[399168431,1766130710611,-5000.0,0.0028,120]
[399168432,1766130710621,-588.99,0.00288,90]
[399168433,1766130710630,-999.999999,0.0029,120]
[399168434,1766130710638,-9951.71,0.0029,30]
[399168435,1766130710647,-200.0,0.00292808,7]
[399168436,1766130710660,-500.0,0.002955,120]
[399168437,1766130710669,-1000.0,0.00298,120]
[399168438,1766130710678,-300.0,0.00299,120]
[399168439,1766130710687,-1327.0,0.003,112]
[399168440,1766130710697,-1000.0,0.003,120]
[399168441,1766130710707,-998.98632548,0.003,120]
[399168442,1766130710716,-1080.2,0.003081,81]
[399168443,1766130710727,-200.0,0.0032,120]
[399168444,1766130710738,-1317.21291,0.0033055,114]
[399168445,1766130710748,-200.0,0.00333,120]
[399168446,1766130710758,-5000.0,0.00333,120]
[399168447,1766130710768,-200.0,0.0034,120]
[399168448,1766130710777,-500.0,0.00345,120]
[399168449,1766130710787,-203.68180422,0.00349998,120]
[399168450,1766130710797,-478.90508768,0.0035,30]
[399168451,1766130710806,-200.0,0.0036,120]
[399168452,1766130710815,-200.0,0.0038,120]
[399168453,1766130710826,-5000.0,0.0038,120]
[399168454,1766130710835,-1613.43413974,0.003888,120]
[399168455,1766130710846,-215.38249364,0.003985,120]
[399168456,1766130710855,-500.0,0.00399,120]
[399168457,1766130710865,-300.0,0.00399,120]
[399168458,1766130710876,-434.54,0.0039922,120]
[399168459,1766130710886,-1000.0,0.00399999,120]
[399168460,1766130710895,-200.0,0.004,120]
[399168461,1766130710904,-172.54303094,0.004,120]
[399168462,1766130710914,-1000.0,0.004,120]
[399168463,1766130710924,-998.98632548,0.004,120]
[399168464,1766130710933,-500.0,0.004,5]
[399168465,1766130710945,-5000.0,0.00414,120]
[399168466,1766130710954,-200.0,0.0042,120]
[399168467,1766130710963,-200.0,0.00421404,7]
[399168468,1766130710973,-200.0,0.0044,120]
[399168469,1766130710982,-1081110.0831,0.00444444,120]
[399168470,1766130710992,-500.0,0.00445,120]
[399168471,1766130711001,-1261.16337922,0.004483,120]
[399168472,1766130711011,-200.0,0.0046,120]
[399168473,1766130711020,-419.34874471,0.0046588,120]
[399168474,1766130711030,-300.0,0.0048,120]
[399168475,1766130711040,-5000.0,0.0048,120]
[399168476,1766130711050,-85930.2929243,0.004987,120]
[399168477,1766130711059,-10000.90199875,0.00498987,120]
[399168478,1766130711068,-300.0,0.00499,120]
[399168479,1766130711078,-300.0,0.005,120]
[399168480,1766130711087,-500.0,0.005,120]
[399168481,1766130711096,-998.98632548,0.005,120]
[399168482,1766130711105,-500.0,0.005,5]
[399168483,1766130711115,-200.0,0.0052,120]
[399168484,1766130711124,-200.44488037,0.0052,120]
[399168485,1766130711133,-200.0,0.0054,120]
[399168486,1766130711142,-500.0,0.005455,120]
[399168487,1766130711151,-200.0,0.0055,7]
[399168488,1766130711161,-200.0,0.0056,120]
[399168489,1766130711170,-5000.0,0.00577,120]
[399168490,1766130711180,-5000.0,0.0058,120]
[399168491,1766130711189,-10170.319,0.00588,120]
[399168492,1766130711200,-300.0,0.00599,120]
[399168493,1766130711209,-200.0,0.006,120]
[399168494,1766130711219,-500.0,0.006,120]
[399168495,1766130711228,-200.0,0.006,60]
[399168496,1766130711237,-998.98632548,0.006,120]
[399168497,1766130711247,-500.0,0.006155,120]
[399168498,1766130711256,-400.0,0.0062,120]
[399168499,1766130711265,-200.0,0.0064,120]
[399168500,1766130711275,-400.0,0.0066,120]
[399168501,1766130711284,-5000.0,0.0068,120]
[399168502,1766130711294,-300.0,0.0068,120]
[399168503,1766130711305,-30000.0,0.00688,120]
[399168504,1766130711314,-5000.0,0.00689,120]
[399168505,1766130711323,-300.0,0.00699,120]
[399168506,1766130711332,-1000.0,0.00699999,120]
[399168507,1766130711341,-400.0,0.007,120]
[399168508,1766130711350,-500.0,0.007,120]
[399168509,1766130711359,-12103.39297026,0.007,120]
[399168510,1766130711368,-998.98632548,0.007,120]
[399168511,1766130711377,-27300.06945014,0.0071,120]
[399168512,1766130711385,-500.0,0.007155,120]
[399168513,1766130711394,-200.0,0.0072,120]
[399168514,1766130711403,-5000.0,0.00733,120]
[399168515,1766130711412,-200.0,0.0074,120]
[399168516,1766130711427,-150.29601545,0.0074747,120]
[399168517,1766130711442,-1000.0,0.00749999,120]
[399168518,1766130711454,-1000.0,0.0075,120]
[399168519,1766130711724,-300.0,0.0076,120]
[399168520,1766130711739,-2.0,0.0078,120]
[399168649,1766131141046,536.0,0.000169,2]
[399168847,1766131679586,235.11,7.492e-05,2]
[399168896,1766131809648,-5000.0,0.00019652,2]
[399168897,1766131809676,-150.0,0.00019851,2]
[399168899,1766131809705,-154.64312354,0.0002,2]
[399168900,1766131809730,-170.456924,0.00020199,2]
[399168901,1766131809755,-170.456924,0.00020199,61]
[399168902,1766131809779,-170.456924,0.00020199,120]
[399168903,1766131809807,-1200.0,0.00020482,2]
[399168904,1766131809832,-300.0,0.00020483,2]
[399168905,1766131809864,-300.0,0.00020483,2]
[399168906,1766131809892,-300.0,0.00020483,2]
[399168907,1766131809921,-300.0,0.00020485,2]
[399168908,1766131809953,-300.0,0.00020485,2]
[399168909,1766131809988,-300.0,0.00020485,2]
[399168910,1766131810017,-300.0,0.00020485,2]
[399168911,1766131810051,-300.0,0.00020485,2]
[399168912,1766131810083,-300.0,0.00020485,2]
[399168913,1766131810113,-300.0,0.00020485,2]
[399168914,1766131810143,-300.0,0.00020485,2]
[399168915,1766131810174,-300.0,0.00020485,2]
[399168916,1766131810204,-300.0,0.00020485,2]
[399168917,1766131810235,-300.0,0.00020485,2]
[399168918,1766131810269,-300.0,0.00020485,2]
[399168919,1766131810307,-300.0,0.00020485,2]
[399168920,1766131810339,-300.0,0.00020485,2]
[399168921,1766131810369,-300.0,0.00020485,2]
[399168922,1766131810395,-946.02964705,0.00020699,2]
[399168923,1766131810424,-600.0,0.00020894,2]
[399168924,1766131810450,-500.0,0.00021298,2]
[399168925,1766131810475,-500.0,0.00021298,2]
[399168926,1766131810506,-500.0,0.00021298,2]
[399168927,1766131810536,-946.02964705,0.00021351,2]
[399168928,1766131810565,-2648.02870612,0.00021394,2]
[399168929,1766131810595,-500.0,0.00021398,2]
[399168930,1766131810622,-629.02815423,0.00021488,2]
[399168931,1766131810649,-299.76547683,0.00021494,2]
[399168932,1766131810677,-500.0,0.00021494,2]
[399168933,1766131810703,-163.98361146,0.00021494,2]
[399168936,1766131810931,-500.0,0.00021494,2]
[399168937,1766131810960,-500.0,0.00021494,2]
[399168938,1766131810987,-500.0,0.00021494,2]
[399168939,1766131811015,-500.0,0.00021494,2]
[399168940,1766131811043,-500.0,0.00021494,2]
[399168941,1766131811071,-500.0,0.00021494,2]
[399168942,1766131811098,-500.0,0.00021494,2]
[399168943,1766131811125,-500.0,0.00021494,2]
[399168944,1766131811151,-500.0,0.00021494,2]
[399168945,1766131811178,-500.0,0.00021494,2]
[399168946,1766131811204,-500.0,0.00021494,2]
[399168947,1766131811230,-500.0,0.00021494,2]
[399168948,1766131811257,-500.0,0.00021494,2]
[399168949,1766131811284,-452.76458907,0.00021494,2]
[399168950,1766131811311,-500.0,0.00021494,2]
[399168951,1766131811338,-500.0,0.00021494,2]
[399168952,1766131811366,-500.0,0.00021494,2]
[399168953,1766131811393,-500.0,0.00021494,2]
[399168954,1766131811419,-500.0,0.00021494,2]
[399168955,1766131811449,-500.0,0.00021494,2]
[399168956,1766131811481,-247.62579569,0.00021494,2]
[399168957,1766131811522,-181.92736275,0.00021494,2]
[399168958,1766131811556,-500.0,0.00021494,2]
[399168959,1766131811586,-500.0,0.00021494,2]
[399168960,1766131811618,-500.0,0.00021494,2]
[399168961,1766131811651,-500.0,0.00021494,2]
[399168962,1766131811676,-500.0,0.00021497,2]
[399168963,1766131811702,-500.0,0.00021498,2]
[399168964,1766131811729,-500.0,0.00021498,2]
[399168965,1766131811756,-500.0,0.00021498,2]
[399168966,1766131811782,-500.0,0.00021498,2]
[399168967,1766131811808,-500.0,0.00021499,2]
[399168968,1766131811832,-558.48,0.00021499,2]
[399168969,1766131811859,-500.0,0.00021499,2]
[399168970,1766131811885,-500.0,0.00021499,2]
[399168971,1766131811909,-229.66,0.00021499,2]
[399168972,1766131811935,-500.0,0.00021772,2]
[399168973,1766131811968,-177.0,0.00021851,2]
[399168974,1766131811992,-500.0,0.00021946,2]
[399168975,1766131812020,-946.02964705,0.00022003,2]
[399168976,1766131812045,-500.0,0.00022046,2]
[399168977,1766131812070,-500.0,0.00022151,2]
[399168978,1766131812094,-500.0,0.00022151,2]
[399168979,1766131812119,-500.0,0.00022151,2]
[399168980,1766131812145,-512.50802268,0.00022151,2]
[399168981,1766131812170,-500.0,0.00022151,2]
[399168982,1766131812195,-504.85950724,0.00022151,2]
[399168983,1766131812219,-500.0,0.00022151,2]
[399168984,1766131812244,-500.0,0.00022151,2]
[399168985,1766131812269,-189.37050767,0.00022151,2]
[399168986,1766131812292,-300.0,0.00022293,2]
[399168987,1766131812332,-420.0,0.00022293,2]
[399168989,1766131812366,-514.4932073,0.0002232,2]
[399168990,1766131812396,-468.0,0.00022398,2]
[399168991,1766131812423,-946.02964705,0.00022654,2]
[399168992,1766131812452,-720.0,0.00022983,10]
[399168993,1766131812477,-946.02964705,0.00023306,2]
[399168994,1766131812503,-204.0,0.00023851,2]
[399168995,1766131812528,-500.0,0.00023957,2]
[399168996,1766131812554,-500.0,0.00023957,2]
[399168997,1766131812583,-946.02964705,0.00023958,2]
[399168998,1766131812609,-587.0,0.00024262,2]
[399168999,1766131812633,-160.0,0.0002435,2]
[399169000,1766131812658,-241.64589253,0.00024489,2]
[399169001,1766131812683,-946.9756767,0.0002461,2]
[399169002,1766131812707,-151.75927968,0.00024658,2]
[399169003,1766131812731,-380.0,0.00024658,2]
[399169004,1766131812755,-260.0,0.00024898,2]
[399169005,1766131812782,-864.0,0.00025281,10]
[399169006,1766131812805,-360.0,0.00025446,2]
[399169007,1766131812830,-211.8092891,0.00025581,2]
[399169008,1766131812853,-183.4110969,0.00025686,2]
[399169009,1766131812877,-231.0,0.00025851,2]
[399169010,1766131812901,-381.25672038,0.00025865,2]
[399169011,1766131812926,-440.0,0.00025994,2]
[399169012,1766131812951,-823.0,0.00026406,2]
[399169013,1766131812980,-1000.0,0.00027809,30]
[399169014,1766131813007,-258.0,0.00027851,2]
[399169015,1766131813032,-1041.66666667,0.00028,7]
[399169016,1766131813060,-1041.66666667,0.00028,3]
[399169017,1766131813085,-1041.66666667,0.00028,7]
[399169018,1766131813109,-1041.66666667,0.00028,3]
[399169019,1766131813133,-241.88753842,0.00028583,2]
[399169020,1766131813158,-480.0,0.00028739,2]
[399169021,1766131813180,-1041.66666667,0.00029,10]
[399169022,1766131813204,-1041.66666667,0.00029,10]
[399169023,1766131813229,-155.3063869,0.00029661,2]
[399169024,1766131813255,-285.0,0.00029851,2]
[399169025,1766131813282,-1000.0,0.0003059,30]
[399169026,1766131813314,-244.0,0.0003059,30]
[399169027,1766131813353,-235.71507434,0.00031851,2]
[399169028,1766131813381,-500.0,0.00033255,30]
[399169029,1766131813409,-1041.66666667,0.00033357,2]
[399169030,1766131813440,-1000.0,0.00033649,30]
[399169031,1766131813471,-492.0,0.00033649,30]
[399169033,1766131813502,-1000.0,0.00037014,30]
[399169034,1766131813529,-791.0,0.00037014,30]
[399169035,1766131813553,-150.249,0.00037613,2]
[399169036,1766131813576,-175.81333159,0.00038,120]
[399169037,1766131813600,-1287.0583755,0.000396,2]
[399169038,1766131813624,-250.16,0.00039616,10]
[399169039,1766131813647,-477.04,0.00039616,10]
[399169040,1766131813673,-397.54,0.00039616,10]